fUSD/lending_fUSD_20250320
["ID","MTS","AMOUNT","RATE_DAILY","PERIOD"]
[356478257,1742506317115,-900.0,0.00055911,37]
[356478258,1742506317125,-900.0,0.00055911,37]
[356478259,1742506317134,-900.0,0.00055911,57]
[356478260,1742506317143,-2730.15702934,0.00056,120]
[356478261,1742506317152,-580.0,0.00056,14]
[356478262,1742506317161,-900.0,0.00056219,38]
[356478263,1742506317170,-900.0,0.00056219,38]
[356478264,1742506317179,-900.0,0.00056219,38]
[356478265,1742506317188,-900.0,0.00056219,38]
[356478266,1742506317198,-900.0,0.00056219,38]
[356478267,1742506317209,-900.0,0.00056219,38]
[356478268,1742506317218,-900.0,0.00056219,38]
[356478269,1742506317227,-900.0,0.00056219,38]
[356478270,1742506317237,-900.0,0.00056219,38]
[356478271,1742506317247,-900.0,0.00056219,38]
[356478272,1742506317256,-900.0,0.00056219,58]
[356478273,1742506317266,-500.0,0.00056356,2]
[356478274,1742506317276,-800.0,0.00056438,120]
[356478275,1742506317285,-1000.0,0.00056438,120]
[356478276,1742506317294,-150.19,0.00056809,120]
[356478277,1742506317303,-800.0,0.00056986,120]
[356478278,1742506317312,-1000.0,0.00056986,120]
[356478279,1742506317322,-4004.15,0.00057,2]
[356478280,1742506317331,-41999.99999901,0.00057,120]
[356478281,1742506317340,-1150.0,0.00057,2]
[356478282,1742506317350,-2000.0,0.000575,90]
[356478283,1742506317359,-1768.029999,0.000575,120]
[356478284,1742506317369,-523.0,0.00057534,120]
[356478285,1742506317378,-800.0,0.00057534,120]
[356478286,1742506317387,-1138.18308986,0.00057534,120]
[356478287,1742506317397,-537.7,0.00057534,120]
[356478288,1742506317407,-156.36,0.00057553,120]
[356478289,1742506317416,-523.0,0.00057561,120]
[356478290,1742506317426,-523.0,0.00057589,120]
[356478291,1742506317435,-523.0,0.00057616,120]
[356478292,1742506317445,-523.0,0.00057644,120]
[356478293,1742506317454,-523.0,0.00057671,120]
[356478294,1742506317464,-523.0,0.00057698,120]
[356478295,1742506317473,-523.0,0.00057726,120]
[356478296,1742506317482,-500.0,0.00057751,120]
[356478297,1742506317492,-523.0,0.00057753,120]
[356478298,1742506317501,-523.0,0.00057781,120]
[356478299,1742506317511,-2681.0,0.000578,72]
[356478300,1742506317520,-523.0,0.00057808,120]
[356478301,1742506317530,-249.33917065,0.00057835,120]
[356478302,1742506317539,-523.0,0.00057835,120]
[356478303,1742506317549,-523.0,0.00057863,120]
[356478304,1742506317559,-200.0,0.00057877,120]
[356478305,1742506317568,-523.0,0.0005789,120]
[356478306,1742506317578,-523.0,0.00057918,120]
[356478307,1742506317588,-523.0,0.00057945,120]
[356478308,1742506317597,-523.0,0.00057972,120]
[356478309,1742506317607,-523.0,0.00058,120]
[356478310,1742506317616,-202.0,0.00058,120]
[356478311,1742506317625,-5000.0,0.00058,120]
[356478312,1742506317634,-198.0,0.00058,120]
[356478313,1742506317643,-183540.78395277,0.00058,120]
[356478314,1742506317652,-42334.25809818,0.00058,30]
[356478315,1742506317661,-2902.73808953,0.00058,30]
[356478316,1742506317670,-150.19,0.00058018,120]
[356478317,1742506317680,-523.0,0.00058027,120]
[356478318,1742506317689,-526.50074575,0.00058055,120]
[356478319,1742506317699,-22848.76717657,0.00058073,120]
[356478320,1742506317708,-800.0,0.00058082,120]
[356478321,1742506317718,-198.0,0.000581,120]
[356478322,1742506317727,-500.0,0.00058192,2]
[356478323,1742506317737,-787.0,0.00058271,2]
[356478324,1742506317746,-1265.0,0.00058271,120]
[356478325,1742506317755,-907.0,0.00058271,120]
[356478326,1742506317764,-4082.0,0.00058271,120]
[356478327,1742506317774,-1430.0,0.00058271,120]
[356478328,1742506317783,-542.0,0.00058271,120]
[356478329,1742506317792,-458.141,0.00058271,120]
[356478330,1742506317801,-1280.0,0.00058271,120]
[356478331,1742506317811,-2035.0,0.00058271,120]
[356478332,1742506317820,-642.0,0.00058271,120]
[356478333,1742506317829,-151.0,0.00058271,120]
[356478334,1742506317838,-533.92419891,0.0005863,120]
[356478335,1742506317847,-205.0,0.000587,70]
[356478336,1742506317856,-159.0,0.000587,77]
[356478337,1742506317865,-159.0,0.000587,77]
[356478338,1742506317875,-1000.0,0.0005877,30]
[356478339,1742506317884,-500.0,0.0005877,30]
[356478340,1742506317893,-19638.91760714,0.00058823,30]
[356478341,1742506317902,-1025.0,0.000589,21]
[356478342,1742506317911,-1100.0,0.000589,21]
[356478343,1742506317920,-1061.6903316,0.0005896,2]
[356478344,1742506317930,-1156.0200257,0.0005896,2]
[356478345,1742506317940,-670.0441322,0.0005896,2]
[356478346,1742506317950,-732.2758208,0.0005896,2]
[356478347,1742506317962,-9992.059496,0.0005896,2]
[356478348,1742506317971,-10999.7781374,0.0005896,2]
[356478349,1742506317981,-5329.46653439,0.00059,120]
[356478350,1742506317991,-69469.52091773,0.00059,120]
[356478351,1742506318019,-4973.48208242,0.00059,120]
[356478352,1742506318268,-40.44811059,0.00059,120]
[356478353,1742506330696,1000.0,0.00011094,2]
[356478354,1742506395212,362.63,0.00011094,2]
[356478355,1742506610637,-1000.0,0.00012481,2]
[356478356,1742506615422,-500.0,0.00013699,2]
[356478357,1742506615447,-150.0,0.00013699,2]
[356478358,1742506615473,-1000.0,0.00013868,2]
[356478363,1742507432163,-350.0,0.00015068,2]
[356478364,1742507432173,-150.0,0.00015162,2]
[356478365,1742507432182,-362.63,0.00015532,2]
[356478366,1742507432191,-150.0,0.00016575,2]
[356478367,1742507432201,-150.0,0.00016575,2]
[356478368,1742507432210,-324.12151942,0.0001991,2]
[356478369,1742507432219,-669.50083007,0.00020513,3]
[356478370,1742507432229,-174.35,0.00020548,2]
[356478371,1742507432238,-999.99,0.00020548,2]
[356478372,1742507432248,-294.35,0.00020548,2]
[356478373,1742507432257,-2362.15,0.00020613,2]
[356478374,1742507432266,-499.99,0.00020613,2]
[356478375,1742507432276,-150.99,0.00020613,2]
[356478376,1742507432285,-620.05,0.00020613,5]
[356478377,1742507432294,-330.78,0.00020613,2]
[356478378,1742507432303,-4042.1,0.00020613,2]
[356478379,1742507432313,-250.0,0.00021,2]
[356478380,1742507432322,-1392.41,0.00021,2]
[356478381,1742507432331,-435.35386931,0.000214,2]
[356478382,1742507432340,-158.66,0.00022548,2]
[356478383,1742507432352,-300.0,0.00023,2]
[356478384,1742507432361,-435.35386904,0.00023624,3]
[356478385,1742507432371,-350.0,0.00025,2]
[356478386,1742507432380,-500.0,0.000256,2]
[356478387,1742507432390,-163.298,0.00025842,11]
[356478389,1742507432399,-1272.018,0.00025842,11]
[356478391,1742507432408,-13691.3431,0.000263,2]
[356478393,1742507432418,-435.35386904,0.00026348,4]
[356478394,1742507432427,-400.0,0.00027,2]
[356478395,1742507432436,-159.862841,0.00027818,2]
[356478396,1742507432446,-450.0,0.00029,2]
[356478397,1742507432455,-435.35386904,0.00029072,5]
[356478398,1742507432464,-500.0,0.00031,2]
[356478399,1742507432473,-229.77290456,0.00031414,30]
[356478400,1742507432483,-435.35386904,0.00031797,6]
[356478401,1742507432492,-593.0,0.00031808,2]
[356478402,1742507432502,-179.23,0.00032747,2]
[356478403,1742507432511,-1000.0,0.00032877,2]
[356478404,1742507432521,-150.0,0.00032955,2]
[356478405,1742507432530,-550.0,0.00033,2]
[356478406,1742507432540,-705.46,0.00033026,2]
[356478407,1742507432549,-150.0,0.00033044,7]
[356478408,1742507432559,-250.0,0.00033052,2]
[356478409,1742507432569,-200.0,0.00033062,2]
[356478410,1742507432578,-2000.0,0.00033075,120]
[356478411,1742507432587,-1000.0,0.00033091,2]
[356478412,1742507432597,-669.50083008,0.00033113,6]
[356478413,1742507432606,-500.0,0.00033164,2]
[356478414,1742507432616,-5292.42640267,0.00033203,2]
[356478415,1742507432625,-45605.4,0.00033213,2]
[356478416,1742507432635,-5800.0,0.00033446,2]
[356478417,1742507432644,-500.0,0.00033453,7]
[356478418,1742507432654,-500.0,0.00033453,7]
[356478419,1742507432663,-200.0,0.00033453,7]
[356478420,1742507432673,-500.0,0.00033453,7]
[356478421,1742507432683,-500.0,0.00033453,7]
[356478422,1742507432692,-500.0,0.00033453,7]
[356478423,1742507432702,-5800.0,0.00033454,2]
[356478424,1742507432711,-200.0,0.00033667,2]
[356478425,1742507432721,-23900.0,0.00033667,2]
[356478426,1742507432731,-901.22,0.00033841,120]
[356478427,1742507432742,-163.67,0.00033904,2]
[356478428,1742507432752,-461.96,0.00034128,2]
[356478429,1742507432761,-2751.0,0.00034128,120]
[356478430,1742507432771,-300.0,0.00034247,2]
[356478431,1742507432781,-435.35386904,0.00034521,7]
[356478432,1742507432791,-600.0,0.00035,2]
[356478433,1742507432800,-166.34,0.00035052,2]
[356478434,1742507432810,-705.46,0.0003529,2]
[356478435,1742507432820,-300.0,0.00035617,2]
[356478436,1742507432829,-163.67,0.00036702,2]
[356478437,1742507432839,-200.0,0.0003671,120]
[356478438,1742507432848,-650.0,0.00037,2]
[356478439,1742507432857,-2316.0,0.00037,117]
[356478440,1742507432867,-171.96630862,0.000372,103]
[356478441,1742507432877,-1000.0,0.00037227,2]
[356478442,1742507432886,-435.35386904,0.00037245,7]
[356478443,1742507432895,-705.46,0.00037554,2]
[356478444,1742507432904,-901.22,0.00038071,120]
[356478445,1742507432913,-150.5492,0.00038888,30]
[356478446,1742507432923,-700.0,0.00039,2]
[356478447,1742507432932,-163.67,0.000395,2]
[356478448,1742507432942,-705.46,0.00039818,2]
[356478449,1742507432951,-435.35386904,0.00039969,8]
[356478450,1742507432961,-750.0,0.00041,2]
[356478451,1742507432970,-150.18,0.00041096,2]
[356478452,1742507432980,-206.103,0.00041172,2]
[356478453,1742507432990,-1280.0,0.00041172,2]
[356478454,1742507432999,-2035.0,0.00041172,2]
[356478455,1742507433009,-1420.0,0.00041172,2]
[356478456,1742507433018,-572.0,0.00041172,2]
[356478457,1742507433028,-779.0,0.00041172,2]
[356478458,1742507433038,-1430.0,0.00041172,2]
[356478459,1742507433048,-2881.185,0.00041172,2]
[356478460,1742507433057,-542.0,0.00041172,2]
[356478461,1742507433067,-151.0,0.00041172,2]
[356478462,1742507433077,-3938.0,0.00041172,2]
[356478463,1742507433087,-153.0,0.00041241,2]
[356478464,1742507433097,-153.0,0.00041241,2]
[356478465,1742507433106,-153.0,0.00041241,2]
[356478466,1742507433117,-1000.0,0.00041363,2]
[356478467,1742507433126,-4399.56808346,0.00041419,14]
[356478468,1742507433136,-705.46,0.00042081,2]
[356478469,1742507433403,-901.22,0.00042301,120]
[356478470,1742507433415,-435.35386904,0.00042693,9]
[356478471,1742507433426,-800.0,0.00043,2]
[356478472,1742507433436,-179.23,0.0004398,2]
[356478473,1742507433446,-1280.0,0.00044172,2]
[356478474,1742507433460,-2035.0,0.00044172,2]
[356478475,1742507433471,-1420.0,0.00044172,2]
[356478476,1742507433481,-572.0,0.00044172,2]
[356478477,1742507433491,-1413.0,0.00044172,2]
[356478478,1742507433502,-535.767,0.00044172,2]
[356478479,1742507433512,-151.0,0.00044172,2]
[356478480,1742507433523,-3938.0,0.00044172,2]
[356478481,1742507433533,-705.46,0.00044345,2]
[356478482,1742507433544,-35574.7657,0.000449,2]
[356478483,1742507433554,-194.4375637,0.000449,120]
[356478484,1742507433564,-194.43756365,0.000449,120]
[356478485,1742507433574,-500.0,0.00044999,120]
[356478486,1742507433584,-500.0,0.00044999,120]
[356478487,1742507433594,-500.0,0.00044999,120]
[356478488,1742507433604,-500.0,0.00044999,120]
[356478489,1742507433614,-500.0,0.00044999,120]
[356478490,1742507433624,-562.57251297,0.00044999,120]
[356478491,1742507433634,-500.0,0.00044999,120]
[356478492,1742507433645,-111041.66130078,0.00045,2]
[356478493,1742507433655,-685.0,0.00045417,7]
[356478494,1742507433665,-435.35386904,0.00045417,10]
[356478495,1742507433675,-1000.0,0.000455,2]
[356478496,1742507433685,-194.43756365,0.00045633,120]
[356478497,1742507433695,-1687.99,0.00045753,120]
[356478498,1742507433705,-498.31,0.00045753,120]
[356478499,1742507433715,-150.0,0.00046,2]
[356478500,1742507433725,-250.0,0.0004617,3]
[356478501,1742507433735,-194.43756365,0.00046413,120]
[356478502,1742507433745,-44805.974567,0.00046465,3]
[356478503,1742507433755,-88888.0,0.00046475,120]
[356478504,1742507433765,-901.22,0.00046532,120]
[356478505,1742507433776,-56007.4682088,0.00046555,3]
[356478506,1742507433786,-38691.23046497,0.00046565,3]
[356478507,1742507437845,-73323.70595303,0.00046565,3]
[356478508,1742507437857,-13471.1626471,0.00046565,3]
[356478509,1742507437867,-584.0,0.00046575,7]
[356478510,1742507437877,-256.52068348,0.00046575,120]
[356478511,1742507437887,-500.0,0.00046575,120]
[356478512,1742507437897,-500.0,0.00046575,120]
[356478513,1742507437908,-290.7826221,0.00046575,120]
[356478514,1742507437918,-500.0,0.00046575,120]
[356478515,1742507437928,-500.0,0.00046575,120]
[356478516,1742507437937,-500.0,0.00046575,120]
[356478517,1742507437947,-500.0,0.00046575,120]
[356478518,1742507437957,-500.0,0.00046575,120]
[356478519,1742507437967,-500.0,0.00046575,120]
[356478520,1742507437977,-500.0,0.00046575,120]
[356478521,1742507437987,-500.0,0.00046575,120]
[356478522,1742507437997,-500.0,0.00046575,120]
[356478523,1742507438006,-500.0,0.00046575,120]
[356478524,1742507438015,-500.0,0.00046575,120]
[356478525,1742507438025,-500.0,0.00046575,120]
[356478526,1742507438036,-500.0,0.00046575,120]
[356478527,1742507438045,-500.0,0.00046575,120]
[356478528,1742507438055,-513.16669844,0.00046575,120]
[356478529,1742507438064,-500.0,0.00046575,120]
[356478530,1742507438074,-500.0,0.00046575,120]
[356478531,1742507438084,-500.0,0.00046575,120]
[356478532,1742507438094,-510.49537376,0.00046575,120]
[356478533,1742507438104,-500.0,0.00046575,120]
[356478534,1742507438114,-500.0,0.00046575,120]
[356478535,1742507438124,-500.0,0.00046575,120]
[356478536,1742507438134,-500.0,0.00046575,120]
[356478537,1742507438143,-500.0,0.00046575,120]
[356478538,1742507438153,-500.0,0.00046575,120]
[356478539,1742507438163,-500.0,0.00046575,120]
[356478540,1742507438172,-500.0,0.00046575,120]
[356478541,1742507438182,-1500.0,0.00046575,120]
[356478542,1742507438191,-208.62024883,0.00046575,120]
[356478543,1742507438201,-500.0,0.00046575,120]
[356478544,1742507438211,-500.0,0.00046575,120]
[356478545,1742507438221,-500.0,0.00046575,120]
[356478546,1742507438231,-500.0,0.00046575,120]
[356478547,1742507438240,-500.0,0.00046575,120]
[356478548,1742507438250,-515.29213257,0.00046575,120]
[356478549,1742507438259,-500.0,0.00046575,120]
[356478550,1742507438269,-500.0,0.00046575,120]
[356478551,1742507438279,-500.0,0.00046575,120]
[356478552,1742507438289,-500.0,0.00046575,120]
[356478553,1742507438299,-500.0,0.00046575,120]
[356478554,1742507438309,-500.0,0.00046575,120]
[356478555,1742507438319,-500.0,0.00046575,120]
[356478556,1742507438329,-500.0,0.00046575,120]
[356478557,1742507438339,-512.91075126,0.00046575,120]
[356478558,1742507438353,-500.0,0.00046575,120]
[356478559,1742507438363,-500.0,0.00046575,120]
[356478560,1742507438372,-500.0,0.00046575,120]
[356478561,1742507438382,-500.0,0.00046575,120]
[356478562,1742507438392,-500.0,0.00046575,120]
[356478563,1742507438401,-500.0,0.00046575,120]
[356478564,1742507438411,-500.0,0.00046575,120]
[356478565,1742507438421,-500.0,0.00046575,120]
[356478566,1742507438430,-500.0,0.00046575,120]
[356478567,1742507438440,-500.0,0.00046575,120]
[356478568,1742507438450,-500.0,0.00046575,120]
[356478569,1742507438459,-500.0,0.00046575,120]
[356478570,1742507438470,-500.0,0.00046575,120]
[356478571,1742507438479,-500.0,0.00046575,120]
[356478572,1742507438488,-500.0,0.00046575,120]
[356478573,1742507438498,-510.35882357,0.00046575,120]
[356478574,1742507438507,-500.0,0.00046575,120]
[356478575,1742507438517,-500.0,0.00046575,120]
[356478576,1742507438526,-500.0,0.00046575,120]
[356478577,1742507438536,-500.0,0.00046575,120]
[356478578,1742507438545,-500.0,0.00046575,120]
[356478579,1742507438555,-500.0,0.00046575,120]
[356478580,1742507438564,-500.0,0.00046575,120]
[356478581,1742507438573,-486.43577951,0.00046575,120]
[356478582,1742507438583,-500.0,0.00046575,120]
[356478583,1742507438592,-500.0,0.00046575,30]
[356478584,1742507438601,-531.32486628,0.00046575,120]
[356478585,1742507438611,-454.0020646,0.00046575,120]
[356478586,1742507438620,-521.41048053,0.00046575,120]
[356478587,1742507438629,-500.0,0.00046575,120]
[356478588,1742507438639,-500.0,0.00046575,120]
[356478589,1742507438648,-500.0,0.00046575,120]
[356478590,1742507438657,-500.0,0.00046575,120]
[356478591,1742507438666,-500.0,0.00046575,120]
[356478592,1742507438675,-507.69239494,0.00046575,120]
[356478593,1742507438685,-500.0,0.00046575,120]
[356478594,1742507438694,-500.0,0.00046575,120]
[356478595,1742507438704,-500.0,0.00046575,120]
[356478596,1742507438713,-500.0,0.00046575,120]
[356478597,1742507438723,-500.0,0.00046575,120]
[356478598,1742507438732,-500.0,0.00046575,120]
[356478599,1742507438741,-536.11398565,0.00046575,120]
[356478600,1742507438751,-500.0,0.00046575,120]
[356478601,1742507438760,-500.0,0.00046575,120]
[356478602,1742507438773,-500.0,0.00046575,120]
[356478603,1742507438783,-500.0,0.00046575,120]
[356478604,1742507438792,-500.0,0.00046575,120]
[356478605,1742507438802,-516.54894574,0.00046575,120]
[356478606,1742507438811,-500.0,0.00046575,120]
[356478607,1742507438821,-500.0,0.00046575,120]
[356478608,1742507438830,-500.0,0.00046575,120]
[356478609,1742507438839,-500.0,0.00046575,120]
[356478610,1742507438849,-500.0,0.00046575,120]
[356478611,1742507438858,-500.0,0.00046575,120]
[356478612,1742507438868,-500.0,0.00046575,120]
[356478613,1742507438877,-567.96519863,0.00046575,120]
[356478614,1742507438887,-500.0,0.00046575,120]
[356478615,1742507438896,-500.0,0.00046575,120]
[356478616,1742507438906,-500.0,0.00046575,120]
[356478617,1742507438916,-500.0,0.00046575,120]
[356478618,1742507438925,-500.0,0.00046575,120]
[356478619,1742507438934,-500.0,0.00046575,120]
[356478620,1742507438944,-500.0,0.00046575,120]
[356478621,1742507438954,-500.0,0.00046575,120]
[356478622,1742507438963,-500.0,0.00046575,120]
[356478623,1742507438973,-500.0,0.00046575,120]
[356478624,1742507438983,-500.0,0.00046575,120]
[356478625,1742507438992,-338.59233121,0.00046575,120]
[356478626,1742507439002,-484.07439889,0.00046575,120]
[356478627,1742507439012,-382.79716166,0.00046575,120]
[356478628,1742507439021,-500.0,0.00046575,120]
[356478629,1742507439032,-500.0,0.00046575,120]
[356478630,1742507439042,-500.0,0.00046575,120]
[356478631,1742507439051,-500.0,0.00046575,120]
[356478632,1742507439061,-500.0,0.00046575,120]
[356478633,1742507439070,-500.0,0.00046575,120]
[356478634,1742507439080,-500.0,0.00046575,120]
[356478635,1742507439089,-507.28349651,0.00046575,120]
[356478636,1742507439099,-500.0,0.00046575,120]
[356478637,1742507439109,-500.0,0.00046575,120]
[356478638,1742507439118,-500.0,0.00046575,120]
[356478639,1742507439127,-500.0,0.00046575,120]
[356478640,1742507439137,-500.0,0.00046575,120]
[356478641,1742507439146,-500.0,0.00046575,120]
[356478642,1742507439155,-500.0,0.00046575,120]
[356478643,1742507439165,-500.0,0.00046575,120]
[356478644,1742507439174,-500.0,0.00046575,120]
[356478645,1742507439184,-500.0,0.00046575,120]
[356478646,1742507439193,-500.0,0.00046575,120]
[356478647,1742507439203,-500.0,0.00046575,120]
[356478648,1742507439212,-500.0,0.00046575,120]
[356478649,1742507439221,-500.0,0.00046575,120]
[356478650,1742507439231,-500.0,0.00046575,120]
[356478651,1742507439242,-500.0,0.00046575,120]
[356478652,1742507439251,-534.83649326,0.00046575,120]
[356478653,1742507439262,-500.0,0.00046575,120]
[356478654,1742507439271,-500.0,0.00046575,120]
[356478655,1742507439280,-500.0,0.00046575,120]
[356478656,1742507439290,-500.0,0.00046575,120]
[356478657,1742507439301,-500.0,0.00046575,120]
[356478658,1742507439311,-500.0,0.00046575,120]
[356478659,1742507439321,-500.0,0.00046575,120]
[356478660,1742507439331,-500.0,0.00046575,120]
[356478661,1742507439342,-500.0,0.00046575,120]
[356478662,1742507439354,-551.37428598,0.00046575,120]
[356478663,1742507439365,-500.0,0.00046575,120]
[356478664,1742507439376,-500.0,0.00046575,120]
[356478665,1742507439386,-500.0,0.00046575,2]
[356478666,1742507439395,-500.0,0.00046575,120]
[356478667,1742507439406,-500.0,0.00046575,120]
[356478668,1742507439415,-500.0,0.00046575,30]
[356478669,1742507439426,-500.0,0.00046575,120]
[356478670,1742507439435,-500.0,0.00046575,120]
[356478671,1742507439445,-500.0,0.00046575,120]
[356478672,1742507439454,-500.0,0.00046575,120]
[356478673,1742507439463,-500.0,0.00046575,120]
[356478674,1742507439472,-500.0,0.00046575,120]
[356478675,1742507439482,-500.0,0.00046575,120]
[356478676,1742507439493,-500.0,0.00046575,120]
[356478677,1742507439503,-500.0,0.00046575,120]
[356478678,1742507439512,-500.0,0.00046575,120]
[356478679,1742507439522,-515.31425035,0.00046575,120]
[356478680,1742507439531,-500.0,0.00046575,120]
[356478681,1742507439540,-500.0,0.00046575,120]
[356478682,1742507439549,-500.0,0.00046575,120]
[356478683,1742507439559,-500.0,0.00046575,120]
[356478684,1742507439568,-500.0,0.00046575,120]
[356478685,1742507439578,-500.0,0.00046575,120]
[356478686,1742507439588,-500.0,0.00046575,120]
[356478687,1742507439597,-500.0,0.00046575,120]
[356478688,1742507439608,-500.0,0.00046575,30]
[356478689,1742507439618,-500.0,0.00046575,120]
[356478690,1742507439630,-503.16466935,0.00046575,120]
[356478691,1742507439640,-500.0,0.00046575,120]
[356478692,1742507439650,-500.0,0.00046575,120]
[356478693,1742507439659,-500.0,0.00046575,120]
[356478694,1742507439668,-500.0,0.00046575,120]
[356478695,1742507439677,-500.0,0.00046575,120]
[356478696,1742507439687,-500.0,0.00046575,120]
[356478697,1742507439696,-500.0,0.00046575,120]
[356478698,1742507439706,-500.0,0.00046575,120]
[356478699,1742507439716,-500.0,0.00046575,120]
[356478700,1742507439725,-500.0,0.00046575,120]
[356478701,1742507439735,-500.0,0.00046575,120]
[356478702,1742507439745,-500.0,0.00046575,120]
[356478703,1742507439755,-500.0,0.00046575,120]
[356478704,1742507439764,-500.0,0.00046575,120]
[356478705,1742507439774,-500.0,0.00046575,120]
[356478706,1742507439784,-500.0,0.00046575,120]
[356478707,1742507439794,-500.0,0.00046575,120]
[356478708,1742507439804,-500.0,0.00046575,120]
[356478709,1742507439814,-500.0,0.00046575,120]
[356478710,1742507439824,-500.0,0.00046575,120]
[356478711,1742507439834,-500.0,0.00046575,120]
[356478712,1742507439843,-500.0,0.00046575,120]
[356478713,1742507439853,-500.0,0.00046575,120]
[356478714,1742507439863,-198.14643019,0.00046575,120]
[356478715,1742507439872,-500.0,0.00046575,120]
[356478716,1742507439882,-500.0,0.00046575,120]
[356478717,1742507439892,-500.0,0.00046575,120]
[356478718,1742507439902,-500.0,0.00046575,120]
[356478719,1742507439912,-500.0,0.00046575,120]
[356478720,1742507439922,-500.0,0.00046575,120]
[356478721,1742507439935,-500.0,0.00046575,120]
[356478722,1742507439945,-500.0,0.00046575,120]
[356478723,1742507439955,-500.0,0.00046575,120]
[356478724,1742507439965,-500.0,0.00046575,120]
[356478725,1742507439974,-500.0,0.00046575,120]
[356478726,1742507439984,-500.0,0.00046575,120]
[356478727,1742507439994,-500.0,0.00046575,120]
[356478729,1742507440005,-500.0,0.00046575,120]
[356478731,1742507440015,-500.0,0.00046575,120]
[356478732,1742507440025,-500.0,0.00046575,120]
[356478733,1742507440034,-500.0,0.00046575,120]
[356478734,1742507440043,-500.0,0.00046575,120]
[356478735,1742507440053,-500.0,0.00046575,120]
[356478736,1742507440063,-500.0,0.00046575,120]
[356478737,1742507440072,-500.0,0.00046575,120]
[356478738,1742507440082,-500.0,0.00046575,120]
[356478739,1742507440092,-500.0,0.00046575,120]
[356478740,1742507440102,-500.0,0.00046575,120]
[356478741,1742507440112,-500.0,0.00046575,120]
[356478742,1742507440122,-500.0,0.00046575,120]
[356478743,1742507440131,-500.0,0.00046575,120]
[356478744,1742507440141,-500.0,0.00046575,120]
[356478745,1742507440151,-500.0,0.00046575,120]
[356478746,1742507440161,-500.0,0.00046575,120]
[356478747,1742507440171,-500.0,0.00046575,120]
[356478748,1742507440181,-500.0,0.00046575,120]
[356478749,1742507440191,-500.0,0.00046575,120]
[356478750,1742507440201,-500.0,0.00046575,120]
[356478751,1742507440211,-500.0,0.00046575,120]
[356478752,1742507440220,-500.0,0.00046575,120]
[356478753,1742507440229,-511.00933578,0.00046575,120]
[356478754,1742507440239,-500.0,0.00046575,120]
[356478755,1742507440249,-500.0,0.00046575,120]
[356478756,1742507440258,-500.0,0.00046575,120]
[356478757,1742507440267,-500.0,0.00046575,120]
[356478758,1742507440276,-500.0,0.00046575,120]
[356478759,1742507440287,-500.0,0.00046575,120]
[356478760,1742507440296,-500.0,0.00046575,120]
[356478761,1742507440306,-589.35,0.00046575,120]
[356478762,1742507440315,-500.0,0.00046575,120]
[356478763,1742507440325,-500.0,0.00046575,120]
[356478764,1742507440334,-500.0,0.00046575,120]
[356478765,1742507440343,-500.0,0.00046575,120]